[Event "ESTCC-65 2025"]
[Site "Swidnica"]
[Date "2025.04.09"]
[Round "6"]
[White "Dietze, Frank"]
[Black "Krupa, Krzysztof"]
[Result "0-1"]
[Annotator "NA"]
[ECO "A58"]
[WhiteElo "2102"]
[BlackElo "1919"]
[PlyCount "64"]
[EventDate "2025.04.05"]
[EventType "team-tourn"]
[EventCountry "POL"]
[SourceTitle "playchess.com"]
[Source "ChessBase"]
[SourceQuality "1"]
[WhiteTeam "Germany"]
[BlackTeam "Poland"]
[WhiteTeamCountry "GER"]
[BlackTeamCountry "POL"]
[TimeControl "40/5400+30:1800+30"]

1. d4 {[%emt 0:00:01]} Nf6 {[%emt 0:00:05]} 2. c4 {[%emt 0:00:11]} c5 {[%emt 0:01:43]} 3. d5 {[%emt 0:01:03]} b5 {[%emt 0:04:07]} 4. cxb5 {[%emt 0:00:02]} a6 {[%emt 0:01:19]} 5. bxa6 {[%emt 0:00:10]} Bxa6 {[%emt 0:01:37]} 6. Nc3 {[%emt 0:00:23]} g6 {[%emt 0:01:05]} 7. e4 {[%emt 0:00:31]} Bxf1 {[%emt 0:00:32]} 8. Kxf1 {[%emt 0:00:01]} Bg7 {[%emt 0:00:02]} 9. g3 {[%emt 0:13:58]} O-O {[%emt 0:03:30]} 10. Kg2 {[%emt 0:01:16]} d6 {[%emt 0:03:24]} 11. Qe2 {[%emt 0:02:24]} Nbd7 {[%emt 0:05:29]} 12. a4 {[%emt 0:02:59]} e6 {[%emt 0:09:04]} 13. Nf3 {[%emt 0:04:59]} exd5 {[%emt 0:06:55]} 14. exd5 {[%emt 0:02:01]} Re8 {[%emt 0:09:50]} 15. Qd3 {[%emt 0:03:24]} Ng4 {[%emt 0:06:29]} 16. Bf4 {[%emt 0:07:53]} Qb6 {[%emt 0:07:32]} 17. Qd2 {[%emt 0:03:19]} c4 {[%emt 0:07:01]} 18. Nb5 {[%emt 0:12:21]} Be5 {[%emt 0:03:52]} 19. Bxe5 {[%emt 0:06:43]} Ngxe5 {[%emt 0:01:23]} 20. Rhc1 {[%emt 0:11:02]} Qc5 {[%emt 0:05:47]} 21. b4 {[%emt 0:02:53]} Qb6 {[%emt 0:01:09]} 22. Qd4 {[%emt 0:00:44]} Nxf3 {[%emt 0:00:49]} 23. Kxf3 {[%emt 0:00:25]} Qd8 {[%emt 0:01:08]} 24. Kg2 {[%emt 0:01:11]} Ne5 {[%emt 0:01:09]} 25. h3 {[%emt 0:00:26]} Qd7 {[%emt 0:04:16]} 26. Rc2 {[%emt 0:12:52]} g5 27. Nc3 {[%emt 0:04:39]} Qf5 {[%emt 0:09:07]} 28. Qe4 {[%emt 0:01:34]} Qf6 {[%emt 0:00:42]} 29. Raa2 {[%emt 0:01:03]} Nd3 {[%emt 0:00:41]} 30. Qxc4 {[%emt 0:00:32]} Ne1+ {[%emt 0:00:04]} 31. Kf1 {[%emt 0:01:06]} Qf3 {[%emt 0:00:31]} 32. Ne2 {[%emt 0:02:22]} Qh1+ {[%emt 0:01:22]} 0-1

[Event "ESTCC-65 2025"]
[Site "Swidnica"]
[Date "2025.04.09"]
[Round "6"]
[White "Hewson, Brian W R"]
[Black "Mueller, Gerhard"]
[Result "1/2-1/2"]
[Annotator "NA"]
[ECO "A06"]
[WhiteElo "2066"]
[BlackElo "2052"]
[PlyCount "41"]
[EventDate "2025.04.05"]
[EventType "team-tourn"]
[EventCountry "POL"]
[SourceTitle "playchess.com"]
[Source "ChessBase"]
[SourceQuality "1"]
[WhiteTeam "England"]
[BlackTeam "Germany"]
[WhiteTeamCountry "ENG"]
[BlackTeamCountry "GER"]
[TimeControl "40/5400+30:1800+30"]

1. Nf3 {[%emt 0:00:07]} d5 {[%emt 0:00:05]} 2. g3 {[%emt 0:01:24]} Nf6 {[%emt 0:02:16]} 3. Bg2 {[%emt 0:00:15]} g6 {[%emt 0:01:29]} 4. d4 {[%emt 0:04:18]} Bg7 {[%emt 0:00:18]} 5. c4 {[%emt 0:00:53]} c6 {[%emt 0:00:24]} 6. Nbd2 {[%emt 0:00:22]} O-O {[%emt 0:01:08]} 7. O-O {[%emt 0:00:42]} Nbd7 {[%emt 0:03:35]} 8. Qc2 {[%emt 0:06:22]} b6 {[%emt 0:03:16]} 9. e4 {[%emt 0:05:57]} dxe4 {[%emt 0:00:56]} 10. Nxe4 {[%emt 0:00:08]} Nxe4 {[%emt 0:01:12]} 11. Qxe4 {[%emt 0:02:30]} Bb7 {[%emt 0:00:21]} 12. Bf4 {[%emt 0:02:26]} Nf6 {[%emt 0:05:08]} 13. Qe3 {[%emt 0:03:39]} Ng4 {[%emt 0:08:10]} 14. Qe2 {[%emt 0:11:14]} h6 {[%emt 0:02:06]} 15. Rad1 {[%emt 0:09:26]} e6 {[%emt 0:08:08]} 16. Rfe1 {[%emt 0:09:21]} Nf6 {[%emt 0:08:09]} 17. Be5 {[%emt 0:02:47]} Rc8 {[%emt 0:03:31]} 18. b3 {[%emt 0:05:28]} Qe7 {[%emt 0:03:15]} 19. Nd2 {[%emt 0:01:29]} Rfd8 {[%emt 0:03:37]} 20. Ne4 {[%emt 0:04:26]} Nxe4 {[%emt 0:02:09]} 21. Qxe4 {[%emt 0:01:27]} 1/2-1/2

[Event "ESTCC-65 2025"]
[Site "Swidnica"]
[Date "2025.04.09"]
[Round "6"]
[White "Stuer, Marc"]
[Black "Miltner, Arndt"]
[Result "1-0"]
[Annotator "ChessBase"]
[ECO "A41"]
[WhiteElo "2038"]
[BlackElo "2232"]
[PlyCount "73"]
[EventDate "2025.04.05"]
[EventType "team-tourn"]
[EventCountry "POL"]
[SourceTitle "playchess.com"]
[Source "ChessBase"]
[SourceQuality "1"]
[WhiteTeam "Belgium"]
[BlackTeam "Germany"]
[WhiteTeamCountry "BEL"]
[BlackTeamCountry "GER"]
[TimeControl "40/5400+30:1800+30"]

1. d4 {[%emt 0:00:03]} d6 {[%emt 0:00:21]} 2. Nf3 {[%emt 0:00:03]} Nf6 {[%emt 0:00:27]} 3. g3 {[%emt 0:00:05]} Nbd7 {[%emt 0:00:48]} 4. Bg2 {[%emt 0:00:06]} e5 {[%emt 0:00:36]} 5. O-O {[%emt 0:00:13]} c6 {[%emt 0:00:38]} 6. c4 {[%emt 0:00:29]} Be7 {[%emt 0:00:48]} 7. Nc3 {[%emt 0:00:09]} O-O {[%emt 0:00:47]} 8. e4 {[%emt 0:00:12]} Re8 {[%emt 0:01:12]} 9. h3 {[%emt 0:00:40]} a6 {[%emt 0:02:00]} 10. a4 {[%emt 0:02:37]} a5 {[%emt 0:01:50]} 11. Be3 {[%emt 0:03:16]} exd4 {[%emt 0:01:51]} 12. Nxd4 {[%emt 0:00:09]} Nc5 {[%emt 0:00:25]} 13. Qc2 {[%emt 0:00:39]} Bf8 {[%emt 0:01:14]} 14. Rfe1 {[%emt 0:03:15]} g6 {[%emt 0:04:43]} 15. Rad1 {[%emt 0:02:48]} Qc7 {[%emt 0:07:07]} 16. f4 {[%emt 0:05:00]} h5 {[%emt 0:02:30]} 17. Bf2 {[%emt 0:03:57]} Bh6 {[%emt 0:11:27]} 18. Nf3 {[%emt 0:03:30]} Bf8 {[%emt 0:06:13]} 19. Bd4 {[%emt 0:07:17]} Nfd7 {[%emt 0:03:23]} 20. f5 {[%emt 0:28:06]} Ne5 {[%emt 0:03:33]} 21. Nxe5 {[%emt 0:02:17]} dxe5 {[%emt 0:00:18]} 22. Be3 {[%emt 0:00:18]} b6 {[%emt 0:06:05]} 23. g4 {[%emt 0:02:49]} hxg4 {[%emt 0:05:59]} 24. hxg4 {[%emt 0:00:06]} f6 {[%emt 0:00:27]} 25. g5 {[%emt 0:01:37]} gxf5 {[%emt 0:02:58]} 26. exf5 {[%emt 0:00:11]} fxg5 {[%emt 0:00:20]} 27. Ne4 {[%emt 0:05:35]} Nxe4 {[%emt 0:05:38]} 28. Qxe4 {[%emt 0:00:38]} Qf7 {[%emt 0:05:24]} 29. Rf1 {[%emt 0:09:06]} Bd7 {[%emt 0:09:11]} 30. Bxb6 {[%emt 0:09:32]} Rec8 {[%emt 0:08:45]} 31. Qe3 {[%emt 0:02:12]} Be8 {[%emt 0:01:38]} 32. Qxe5 {[%emt 0:03:07]} Qe7 {[%emt 0:05:27]} 33. Qg3 {[%emt 0:02:07]} Bg7 {[%emt 0:00:58]} 34. Rfe1 {[%emt 0:03:26]} Qb4 {[%emt 0:01:14]} 35. Bd4 {[%emt 0:00:31]} Bxd4+ 36. Rxd4 Ra7 37. f6 1-0

[Event "ESTCC-65 2025"]
[Site "Swidnica"]
[Date "2025.04.09"]
[Round "6"]
[White "Lange, Torsten"]
[Black "Higgie, Charles L"]
[Result "0-1"]
[Annotator "NA"]
[ECO "A28"]
[WhiteElo "2025"]
[BlackElo "1992"]
[PlyCount "110"]
[EventDate "2025.04.05"]
[EventType "team-tourn"]
[EventCountry "POL"]
[SourceTitle "playchess.com"]
[Source "ChessBase"]
[SourceQuality "1"]
[WhiteTeam "Germany"]
[BlackTeam "England"]
[WhiteTeamCountry "GER"]
[BlackTeamCountry "ENG"]
[TimeControl "40/5400+30:1800+30"]

1. c4 {[%emt 0:00:04]} Nf6 {[%emt 0:00:46]} 2. Nc3 {[%emt 0:00:09]} e5 {[%emt 0:00:09]} 3. Nf3 {[%emt 0:00:15]} Nc6 {[%emt 0:00:01]} 4. d4 {[%emt 0:01:23]} exd4 {[%emt 0:00:17]} 5. Nxd4 {[%emt 0:00:04]} Bb4 {[%emt 0:00:43]} 6. Bg5 {[%emt 0:00:38]} h6 {[%emt 0:00:46]} 7. Bh4 {[%emt 0:00:05]} Bxc3+ {[%emt 0:00:55]} 8. bxc3 {[%emt 0:00:08]} Ne5 {[%emt 0:01:55]} 9. e3 {[%emt 0:00:17]} d6 {[%emt 0:00:44]} 10. Bg3 {[%emt 0:04:43]} O-O {[%emt 0:01:44]} 11. c5 {[%emt 0:01:42]} Ne4 {[%emt 0:05:32]} 12. cxd6 {[%emt 0:01:19]} Nxg3 {[%emt 0:01:53]} 13. hxg3 {[%emt 0:00:31]} Qxd6 {[%emt 0:00:27]} 14. Nb5 {[%emt 0:19:54]} Qc6 {[%emt 0:05:01]} 15. Qd4 {[%emt 0:10:42]} Re8 {[%emt 0:02:36]} 16. Rh5 {[%emt 0:10:36]} f5 {[%emt 0:19:22]} 17. c4 {[%emt 0:06:26]} a6 {[%emt 0:04:28]} 18. Nc3 {[%emt 0:02:23]} Qg6 {[%emt 0:02:35]} 19. Be2 {[%emt 0:00:40]} Nc6 {[%emt 0:03:20]} 20. Qf4 {[%emt 0:01:41]} Qf6 {[%emt 0:02:23]} 21. Rc1 {[%emt 0:01:27]} Ne5 {[%emt 0:03:37]} 22. Nd5 {[%emt 0:08:58]} Qd6 {[%emt 0:04:12]} 23. Qd4 {[%emt 0:03:50]} c5 {[%emt 0:09:20]} 24. Qd2 {[%emt 0:03:43]} b5 {[%emt 0:04:36]} 25. cxb5 {[%emt 0:03:45]} Rd8 {[%emt 0:00:59]} 26. Rd1 {[%emt 0:00:36]} Bb7 {[%emt 0:00:21]} 27. Nf4 {[%emt 0:05:47]} Qf6 {[%emt 0:02:44]} 28. Qc2 {[%emt 0:02:00]} Rxd1+ {[%emt 0:10:29]} 29. Qxd1 {[%emt 0:01:03]} axb5 {[%emt 0:00:56]} 30. Qb3+ {[%emt 0:01:11]} c4 {[%emt 0:07:15]} 31. Qxb5 {[%emt 0:00:35]} Nd3+ {[%emt 0:00:51]} 32. Nxd3 {[%emt 0:08:27]} Qa1+ {[%emt 0:01:17]} 33. Nc1 {[%emt 0:00:05]} Qxc1+ {[%emt 0:00:29]} 34. Bd1 {[%emt 0:00:06]} Rd8 {[%emt 0:01:54]} 35. Qxc4+ {[%emt 0:02:07]} Qxc4 {[%emt 0:00:14]} 36. Bb3 {[%emt 0:00:03]} Qxb3 {[%emt 0:00:20]} 37. axb3 {[%emt 0:00:06]} Be4 {[%emt 0:00:22]} 38. f3 {[%emt 0:00:45]} Bc2 {[%emt 0:00:29]} 39. b4 {[%emt 0:00:15]} Rd1+ {[%emt 0:02:26]} 40. Ke2 {[%emt 0:00:00]} Rb1 {[%emt 0:00:00]} 41. Kd2 {[%emt 0:00:55]} Ba4 {[%emt 0:02:18]} 42. Rxf5 {[%emt 0:05:49]} Rxb4 {[%emt 0:00:33]} 43. Rf4 {[%emt 0:01:58]} Rxf4 {[%emt 0:02:46]} 44. gxf4 {[%emt 0:00:08]} Kf7 {[%emt 0:00:57]} 45. Kd3 {[%emt 0:01:15]} Ke6 {[%emt 0:01:04]} 46. g3 {[%emt 0:01:03]} Bd1 {[%emt 0:03:07]} 47. Ke4 {[%emt 0:00:53]} g6 {[%emt 0:00:45]} 48. g4 {[%emt 0:02:14]} Kf6 {[%emt 0:00:15]} 49. g5+ {[%emt 0:09:46]} hxg5 {[%emt 0:00:15]} 50. fxg5+ {[%emt 0:00:07]} Kxg5 {[%emt 0:00:10]} 51. f4+ {[%emt 0:00:20]} Kf6 {[%emt 0:01:34]} 52. Kd5 {[%emt 0:00:45]} Kf5 {[%emt 0:00:28]} 53. Kd4 {[%emt 0:01:20]} Bc2 {[%emt 0:00:41]} 54. Kd5 {[%emt 0:00:22]} Kg4 {[%emt 0:00:32]} 55. Ke5 {[%emt 0:02:17]} Kf3 {[%emt 0:00:15]} 0-1

[Event "ESTCC-65 2025"]
[Site "Swidnica"]
[Date "2025.04.09"]
[Round "6"]
[White "Czajkowski, Ryszard"]
[Black "Topchii, Gennadii"]
[Result "1/2-1/2"]
[Annotator "NA"]
[ECO "A40"]
[WhiteElo "1963"]
[BlackElo "2012"]
[PlyCount "35"]
[EventDate "2025.04.05"]
[EventType "team-tourn"]
[EventCountry "POL"]
[SourceTitle "playchess.com"]
[Source "ChessBase"]
[SourceQuality "1"]
[WhiteTeam "Poland"]
[BlackTeam "Germany"]
[WhiteTeamCountry "POL"]
[BlackTeamCountry "GER"]
[TimeControl "40/5400+30:1800+30"]

1. d4 {[%emt 0:00:03]} e6 {[%emt 0:00:13]} 2. c4 {[%emt 0:00:29]} f5 {[%emt 0:00:12]} 3. Nf3 {[%emt 0:01:21]} Nf6 {[%emt 0:00:12]} 4. g3 {[%emt 0:01:35]} d5 {[%emt 0:01:01]} 5. Bg2 {[%emt 0:01:24]} c6 {[%emt 0:00:17]} 6. O-O {[%emt 0:01:11]} Bd6 {[%emt 0:00:14]} 7. b3 {[%emt 0:01:43]} Qe7 {[%emt 0:00:16]} 8. Nc3 {[%emt 0:06:00]} O-O {[%emt 0:00:20]} 9. Bb2 {[%emt 0:05:45]} Nbd7 {[%emt 0:02:29]} 10. cxd5 {[%emt 0:01:15]} exd5 {[%emt 0:00:47]} 11. e3 {[%emt 0:01:05]} Ne4 {[%emt 0:00:21]} 12. Ne2 {[%emt 0:04:11]} Ng5 {[%emt 0:04:01]} 13. Nf4 {[%emt 0:05:29]} Nxf3+ {[%emt 0:00:11]} 14. Bxf3 {[%emt 0:00:35]} Nf6 {[%emt 0:00:30]} 15. Nd3 {[%emt 0:00:27]} Be6 {[%emt 0:00:31]} 16. Ne5 {[%emt 0:00:27]} Nd7 {[%emt 0:00:40]} 17. Bg2 {[%emt 0:04:32]} Bf7 {[%emt 0:04:13]} 18. Nxd7 {[%emt 0:08:15]} 1/2-1/2

[Event "ESTCC-65 2025"]
[Site "Swidnica"]
[Date "2025.04.09"]
[Round "6"]
[White "Reynolds, D Ian W"]
[Black "Becker, Norbert"]
[Result "1/2-1/2"]
[Annotator "NA"]
[ECO "B22"]
[WhiteElo "1926"]
[BlackElo "2032"]
[PlyCount "58"]
[EventDate "2025.04.05"]
[EventType "team-tourn"]
[EventCountry "POL"]
[SourceTitle "playchess.com"]
[Source "ChessBase"]
[SourceQuality "1"]
[WhiteTeam "England"]
[BlackTeam "Germany"]
[WhiteTeamCountry "ENG"]
[BlackTeamCountry "GER"]
[TimeControl "40/5400+30:1800+30"]

1. e4 {[%emt 0:00:03]} c5 {[%emt 0:00:16]} 2. c3 {[%emt 0:00:07]} g6 {[%emt 0:00:20]} 3. Nf3 {[%emt 0:00:47]} Bg7 {[%emt 0:00:28]} 4. d4 {[%emt 0:01:03]} cxd4 {[%emt 0:00:28]} 5. cxd4 {[%emt 0:02:40]} d5 {[%emt 0:00:22]} 6. e5 {[%emt 0:01:21]} Nc6 {[%emt 0:01:29]} 7. Nc3 {[%emt 0:04:28]} Bg4 {[%emt 0:03:50]} 8. Be2 {[%emt 0:00:54]} a6 {[%emt 0:03:17]} 9. h3 {[%emt 0:05:58]} Bxf3 {[%emt 0:00:59]} 10. Bxf3 {[%emt 0:00:09]} e6 {[%emt 0:00:25]} 11. O-O {[%emt 0:01:29]} Nge7 {[%emt 0:01:48]} 12. b3 {[%emt 0:03:50]} Nf5 {[%emt 0:05:30]} 13. Ne2 {[%emt 0:00:40]} Qb6 {[%emt 0:15:43]} 14. Bb2 {[%emt 0:02:25]} Nh4 {[%emt 0:02:47]} 15. Qd3 {[%emt 0:08:34]} Nb4 {[%emt 0:05:57]} 16. Qd2 {[%emt 0:01:28]} Nxf3+ {[%emt 0:02:34]} 17. gxf3 {[%emt 0:00:09]} Nc6 {[%emt 0:03:43]} 18. Ba3 {[%emt 0:04:28]} Qa5 {[%emt 0:02:03]} 19. Qxa5 {[%emt 0:00:39]} Nxa5 {[%emt 0:00:49]} 20. Rac1 {[%emt 0:01:31]} Nc6 {[%emt 0:04:45]} 21. Rc2 {[%emt 0:01:21]} Kd7 {[%emt 0:03:33]} 22. Kg2 {[%emt 0:01:18]} Rhc8 {[%emt 0:01:13]} 23. Rfc1 {[%emt 0:02:41]} Nd8 {[%emt 0:06:13]} 24. f4 {[%emt 0:14:19]} Rxc2 {[%emt 0:01:05]} 25. Rxc2 {[%emt 0:00:06]} Rc8 {[%emt 0:00:27]} 26. Rxc8 {[%emt 0:00:56]} Kxc8 {[%emt 0:00:12]} 27. Kf3 {[%emt 0:00:38]} Nc6 {[%emt 0:03:40]} 28. Ke3 {[%emt 0:00:27]} Kd7 {[%emt 0:01:11]} 29. Nc1 {[%emt 0:01:59]} b6 1/2-1/2

[Event "ESTCC-65 2025"]
[Site "Swidnica"]
[Date "2025.04.09"]
[Round "6"]
[White "Sobocanec, Alojz"]
[Black "Kosten, Anthony C."]
[Result "0-1"]
[Annotator "ChessBase"]
[ECO "E13"]
[WhiteElo "1792"]
[BlackElo "2366"]
[PlyCount "99"]
[EventDate "2025.04.05"]
[EventType "team-tourn"]
[EventCountry "POL"]
[SourceTitle "playchess.com"]
[Source "ChessBase"]
[SourceQuality "1"]
[WhiteTeam "Croatia"]
[BlackTeam "England"]
[WhiteTeamCountry "CRO"]
[BlackTeamCountry "ENG"]
[TimeControl "40/5400+30:1800+30"]

1. d4 {[%emt 0:15:26]} Nf6 {[%emt 0:00:08]} 2. c4 {[%emt 0:00:02]} e6 {[%emt 0:00:09]} 3. Nf3 {[%emt 0:00:03]} Bb4+ {[%emt 0:00:13]} 4. Nc3 {[%emt 0:00:02]} b6 {[%emt 0:00:44]} 5. Bg5 {[%emt 0:00:36]} h6 {[%emt 0:00:25]} 6. Bh4 {[%emt 0:00:11]} Bb7 {[%emt 0:00:30]} 7. e3 {[%emt 0:00:10]} Bxc3+ {[%emt 0:01:36]} 8. bxc3 {[%emt 0:00:04]} d6 {[%emt 0:00:15]} 9. Bd3 {[%emt 0:00:27]} Nbd7 {[%emt 0:00:22]} 10. O-O {[%emt 0:01:13]} Qe7 {[%emt 0:01:24]} 11. Re1 {[%emt 0:00:27]} g5 {[%emt 0:02:02]} 12. Bg3 {[%emt 0:00:27]} Ne4 13. Bxe4 {[%emt 0:00:46]} Bxe4 {[%emt 0:01:12]} 14. Nd2 {[%emt 0:00:02]} Bb7 {[%emt 0:00:41]} 15. e4 {[%emt 0:00:36]} h5 {[%emt 0:00:39]} 16. f3 {[%emt 0:00:12]} h4 {[%emt 0:04:20]} 17. Bf2 {[%emt 0:00:05]} Nf6 {[%emt 0:11:49]} 18. h3 {[%emt 0:01:55]} Nh5 {[%emt 0:00:40]} 19. Nf1 {[%emt 0:00:21]} Nf4 {[%emt 0:07:38]} 20. Kh2 {[%emt 0:02:08]} Qd7 {[%emt 0:01:50]} 21. Ne3 {[%emt 0:00:59]} O-O-O {[%emt 0:00:53]} 22. a4 {[%emt 0:00:17]} f5 {[%emt 0:02:36]} 23. d5 fxe4 {[%emt 0:01:44]} 24. fxe4 Rhf8 25. Ng4 {[%emt 0:04:12]} a5 {[%emt 0:08:07]} 26. Be3 {[%emt 0:01:22]} Rde8 {[%emt 0:01:08]} 27. Bd4 {[%emt 0:01:27]} e5 {[%emt 0:05:26]} 28. Be3 {[%emt 0:00:10]} Qh7 {[%emt 0:00:46]} 29. Bg1 {[%emt 0:01:22]} Nh5 {[%emt 0:06:11]} 30. Qb3 {[%emt 0:07:26]} Ng3 {[%emt 0:06:54]} 31. Bxb6 {[%emt 0:02:10]} cxb6 {[%emt 0:01:38]} 32. Qxb6 {[%emt 0:00:04]} Qc7 {[%emt 0:00:12]} 33. Qa7 {[%emt 0:00:38]} Qc5 {[%emt 0:09:16]} 34. Qxc5+ {[%emt 0:00:27]} dxc5 {[%emt 0:00:07]} 35. Rab1 {[%emt 0:02:11]} Ba6 {[%emt 0:07:56]} 36. Rb6 {[%emt 0:00:04]} Bxc4 {[%emt 0:00:13]} 37. Rc6+ {[%emt 0:00:04]} Kb8 {[%emt 0:09:37]} 38. Rxc5 {[%emt 0:00:17]} Bd3 {[%emt 0:00:56]} 39. d6 {[%emt 0:03:31]} Nxe4 {[%emt 0:00:46]} 40. Rxe5 {[%emt 0:00:45]} Nxd6 {[%emt 0:06:54]} 41. g3 Rxe5 {[%emt 0:03:39]} 42. Rxe5 {[%emt 0:04:04]} Rf1 {[%emt 0:05:24]} 43. gxh4 {[%emt 0:00:34]} gxh4 {[%emt 0:00:56]} 44. Kg2 {[%emt 0:01:26]} Rc1 {[%emt 0:01:52]} 45. Kf2 {[%emt 0:06:38]} Nf5 {[%emt 0:01:26]} 46. Kf3 {[%emt 0:02:19]} Rf1+ {[%emt 0:02:38]} 47. Nf2 {[%emt 0:00:13]} Ng3 {[%emt 0:02:11]} 48. Ke3 {[%emt 0:03:20]} Re1+ {[%emt 0:00:56]} 49. Kd4 {[%emt 0:00:09]} Nf5+ {[%emt 0:00:43]} 50. Kd5 0-1

[Event "ESTCC-65 2025"]
[Site "Swidnica"]
[Date "2025.04.09"]
[Round "6"]
[White "Petanjek, Zvonko"]
[Black "Baker, Chris W"]
[Result "0-1"]
[Annotator "ChessBase"]
[ECO "C02"]
[WhiteElo "1732"]
[BlackElo "2151"]
[PlyCount "48"]
[EventDate "2025.04.05"]
[EventType "team-tourn"]
[EventCountry "POL"]
[SourceTitle "playchess.com"]
[Source "ChessBase"]
[SourceQuality "1"]
[WhiteTeam "Croatia"]
[BlackTeam "England"]
[WhiteTeamCountry "CRO"]
[BlackTeamCountry "ENG"]
[TimeControl "40/5400+30:1800+30"]

1. e4 {[%emt 0:00:06]} e6 {[%emt 0:00:24]} 2. d4 {[%emt 0:00:13]} d5 {[%emt 0:00:11]} 3. e5 {[%emt 0:00:06]} c5 {[%emt 0:00:33]} 4. c3 {[%emt 0:00:20]} Nc6 {[%emt 0:00:28]} 5. Nf3 {[%emt 0:00:13]} Qb6 {[%emt 0:00:59]} 6. Qb3 {[%emt 0:00:28]} Bd7 {[%emt 0:03:25]} 7. Qxb6 {[%emt 0:00:15]} axb6 {[%emt 0:00:09]} 8. Bb5 {[%emt 0:01:10]} Nxe5 {[%emt 0:01:19]} 9. Bxd7+ {[%emt 0:00:12]} Nxd7 {[%emt 0:00:17]} 10. Be3 {[%emt 0:00:53]} Ne7 {[%emt 0:02:53]} 11. O-O {[%emt 0:00:47]} Nf5 {[%emt 0:03:38]} 12. Nbd2 {[%emt 0:02:02]} h5 {[%emt 0:03:14]} 13. a3 {[%emt 0:00:28]} f6 {[%emt 0:01:39]} 14. b4 {[%emt 0:00:33]} Ra4 {[%emt 0:05:14]} 15. h3 {[%emt 0:00:55]} h4 {[%emt 0:00:59]} 16. Rfe1 {[%emt 0:01:25]} Kf7 {[%emt 0:02:02]} 17. Ra2 {[%emt 0:00:53]} Bd6 {[%emt 0:01:43]} 18. Nb3 {[%emt 0:00:19]} cxb4 {[%emt 0:00:33]} 19. cxb4 {[%emt 0:00:18]} Rha8 {[%emt 0:01:11]} 20. Rc1 {[%emt 0:02:20]} Rxa3 {[%emt 0:00:47]} 21. Rxa3 {[%emt 0:00:10]} Rxa3 {[%emt 0:00:10]} 22. Nfd2 {[%emt 0:00:11]} Bxb4 {[%emt 0:01:34]} 23. Rb1 {[%emt 0:01:21]} Nxe3 {[%emt 0:02:05]} 24. fxe3 {[%emt 0:00:17]} Bxd2 {[%emt 0:00:07]} 0-1

[Event "ESTCC-65 2025"]
[Site "Swidnica"]
[Date "2025.04.10"]
[Round "7"]
[White "Kosten, Anthony C."]
[Black "Bowmer, Kevin"]
[Result "1-0"]
[Annotator "RC"]
[ECO "A36"]
[WhiteElo "2366"]
[BlackElo "2126"]
[PlyCount "61"]
[EventDate "2025.04.05"]
[EventType "team-tourn"]
[EventCountry "POL"]
[SourceTitle "playchess.com"]
[Source "ChessBase"]
[SourceQuality "1"]
[WhiteTeam "England"]
[BlackTeam "England"]
[WhiteTeamCountry "ENG"]
[BlackTeamCountry "ENG"]
[TimeControl "40/5400+30:1800+30"]

1. c4 {[%emt 0:00:03]} c5 {[%emt 0:00:15]} 2. g3 {[%emt 0:00:14]} g6 {[%emt 0:00:17]} 3. Bg2 {[%emt 0:00:11]} Bg7 {[%emt 0:00:06]} 4. Nc3 {[%emt 0:00:07]} Nc6 {[%emt 0:00:22]} 5. d3 {[%emt 0:00:14]} d6 {[%emt 0:02:35]} 6. Qd2 {[%emt 0:00:11]} e5 {[%emt 0:04:22]} 7. b3 {[%emt 0:00:08]} Nge7 {[%emt 0:01:08]} 8. Bb2 {[%emt 0:00:09]} Rb8 {[%emt 0:02:14]} 9. e3 {[%emt 0:01:00]} a6 {[%emt 0:00:50]} 10. Nge2 {[%emt 0:01:12]} b5 {[%emt 0:01:38]} 11. O-O {[%emt 0:01:55]} O-O {[%emt 0:00:37]} 12. h3 {[%emt 0:04:09]} f5 {[%emt 0:04:36]} 13. Rad1 {[%emt 0:03:02]} Kh8 {[%emt 0:03:20]} 14. f4 {[%emt 0:05:32]} b4 {[%emt 0:15:35]} 15. Nd5 {[%emt 0:11:56]} Nxd5 {[%emt 0:01:01]} 16. cxd5 {[%emt 0:10:28]} Ne7 {[%emt 0:01:09]} 17. Kh2 {[%emt 0:03:31]} a5 {[%emt 0:02:42]} 18. Rc1 {[%emt 0:06:38]} Qb6 {[%emt 0:02:55]} 19. Ng1 {[%emt 0:03:15]} Ba6 {[%emt 0:13:06]} 20. Rf2 {[%emt 0:01:47]} Rfe8 {[%emt 0:02:16]} 21. e4 {[%emt 0:02:00]} Rbc8 {[%emt 0:08:36]} 22. fxe5 {[%emt 0:02:05]} dxe5 {[%emt 0:06:32]} 23. Nf3 {[%emt 0:01:28]} Ng8 {[%emt 0:00:36]} 24. Ng5 {[%emt 0:01:53]} Qf6 {[%emt 0:01:28]} 25. exf5 {[%emt 0:04:38]} gxf5 {[%emt 0:02:02]} 26. Ne6 {[%emt 0:02:07]} Rxe6 {[%emt 0:03:26]} 27. dxe6 {[%emt 0:00:07]} Qxe6 {[%emt 0:00:23]} 28. Qe3 {[%emt 0:02:41]} Ne7 {[%emt 0:03:32]} 29. Rxc5 {[%emt 0:01:31]} Rxc5 {[%emt 0:01:23]} 30. Qxc5 {[%emt 0:00:07]} Bxd3 {[%emt 0:00:17]} 31. Qxa5 {[%emt 0:00:32]} 1-0

[Event "ESTCC-65 2025"]
[Site "Swidnica"]
[Date "2025.04.10"]
[Round "7"]
[White "Sandner, Gunter"]
[Black "Beilfuss, Wilfried"]
[Result "1/2-1/2"]
[Annotator "ChessBase"]
[ECO "E05"]
[WhiteElo "2243"]
[BlackElo "2070"]
[PlyCount "29"]
[EventDate "2025.04.05"]
[EventType "team-tourn"]
[EventCountry "POL"]
[SourceTitle "playchess.com"]
[Source "ChessBase"]
[SourceQuality "1"]
[WhiteTeam "Germany"]
[BlackTeam "Germany"]
[WhiteTeamCountry "GER"]
[BlackTeamCountry "GER"]
[TimeControl "40/5400+30:1800+30"]

1. d4 {[%emt 0:00:09]} Nf6 {[%emt 0:00:12]} 2. Nf3 {[%emt 0:00:24]} e6 {[%emt 0:00:14]} 3. c4 {[%emt 0:00:11]} d5 {[%emt 0:00:16]} 4. g3 {[%emt 0:00:06]} dxc4 {[%emt 0:00:24]} 5. Bg2 {[%emt 0:00:20]} Be7 {[%emt 0:00:27]} 6. Qc2 {[%emt 0:01:22]} a6 {[%emt 0:05:53]} 7. a4 {[%emt 0:02:57]} O-O {[%emt 0:03:49]} 8. O-O {[%emt 0:01:38]} Bd7 {[%emt 0:01:45]} 9. Qxc4 {[%emt 0:01:56]} Bc6 {[%emt 0:00:31]} 10. Bg5 {[%emt 0:03:31]} Nbd7 {[%emt 0:13:54]} 11. Nc3 {[%emt 0:02:36]} h6 {[%emt 0:00:19]} 12. Bxf6 {[%emt 0:01:54]} Nxf6 {[%emt 0:00:26]} 13. Rfe1 {[%emt 0:04:06]} Bd5 {[%emt 0:02:18]} 14. Nxd5 {[%emt 0:04:49]} exd5 {[%emt 0:00:25]} 15. Qc2 1/2-1/2